{"text_format":"1","workbook":"xlsx","n_sheets":2,"sheets":["Мониторинг","Подписанты"],"not_rendered":{"charts":0,"images":0,"macros":1,"external_links":0,"defined_names":0,"comments":0,"pivot_tables":0},"unopened":[],"bounds":{"document_bytes":16777216,"sheet_cells":100000,"rows_first":2000,"rows_last":500,"rows_between":2000,"halvings":0,"cell_chars":16384,"cell_head_chars":4096},"cells_cut":0,"cells_raw":0,"read":"whole","date_system":"1900"}

{"sheet":"Мониторинг","index":0,"n_rows":24,"n_cols":16,"rows_kept":24,"cut":false,"hidden":false,"merged":[[22,13,22,15],[23,13,23,15],[20,2,20,6],[20,13,20,15],[21,2,21,6],[21,8,21,10],[21,13,21,15],[17,2,17,6],[17,13,17,15],[18,2,18,6],[18,8,18,10],[18,13,18,15],[4,4,4,8],[5,9,6,13],[5,14,7,14],[5,15,7,15],[6,4,7,4],[6,5,7,5],[6,6,7,6],[6,7,6,8],[0,0,0,4],[1,5,1,8],[2,0,2,15],[0,5,0,8],[3,4,3,8],[5,0,7,0],[5,1,7,1],[5,2,7,2],[5,3,7,3],[5,4,5,8]]}
["Показатели ежемесячного мониторинга за",null,null,null,null,"январь 2017 года",null,null,null,"(нарастающим итогом с начала года)"]
[null,null,null,null,null,"(период с начала года, например, январь-апрель 2017 года)"]
["о  реализации мероприятий  федеральной целевой программы \"Повышение безопасности дорожного движения в 2013-2020 годах\", финансируемых за счет средств федерального бюджета в 2017 году"]
[null,null,"Государственный заказчик:",null,"Министерство здравоохранения Российской Федерации "]
[null,null,null,null,"(государственный заказчик)",null,null,null,null,null,null,null,null,null,null,"тыс. рублей"]
["№ \nп/п","Мероприятие","Объем средств федерального бюджета по постановле-нию Прави-тельства РФ \nот 03.10.2013 \n№ 864 \n(в ред. от 11.10.2016 \n№ 1031)","Объем доведенных лимитов бюджетных обязательств по Феде-ральному закону от 19.12.2016 \n№ 415-ФЗ","Процедура заключения государственного контракта",null,null,null,null,"Ход исполнения обязательств по государственному контракту с начала года",null,null,null,null,"Остаток лимитов бюджетных обязательств (столбец 4 - столбец 9)","Этап выполнения мероприятия"]
[null,null,null,null," Информация о наличии технических заданий (есть/нет)","Информация о размещении конкурсной документации (номер, дата)","№, дата государственного контракта, \nнаименования организаций-исполнителей","Стоимость работ  действующего государственного контракта"]
[null,null,null,null,null,null,null,"Всего","в т.ч. предумотрено на 2017 год","Оплаченный аванс","Принято работ по актам выполненных работ","Всего оплачено по контракту (кассовые расходы с начала года)","Остаток средств, подлежащих перечислению  (столбец  9 - столбец 12)","Срок исполнения, предусмотрен-ный контрактом"]
[1,2,3,4,5,6,7,8,9,10,11,12,13,14,15,16]
[null,"ВСЕГО (прочие нужды) ",{"$f":"C11","v":21926.3},{"$f":"D11","v":29913.200000000001},null,null,null,{"$f":"H11","v":0},{"$f":"I11","v":0},0,0,0,0,null,{"$f":"O11","v":29913.200000000001}]
[null,"Прочие нужды, всего",{"$f":"SUM(C13:C14)","v":21926.3},{"$f":"SUM(D13:D14)","v":29913.200000000001},null,null,null,{"$f":"H13+H14","v":0},{"$f":"I13+I14","v":0},0,0,0,{"$f":"I11-L11","v":0},null,{"$f":"D11-I11","v":29913.200000000001}]
[null,"в том числе:"]
[1,"6/12 «Оснащение медицинских организаций автомобилями скорой медицинской помощи класса \"C\" для оказания скорой медицинской помощи паци-ентам, пострадавшим при дорожно-транспортных происшествиях»",19926.3,{"$f":"29913.2-2000","v":27913.200000000001},null,null,null,null,null,null,null,null,{"$f":"I13-L13","v":0},null,{"$f":"D13-I13","v":27913.200000000001}]
[2,"6/13 «Проведение Всероссийского конкурса профессионального мастерства среди работников скорой медицинской помощи, медицины катастроф и работников экстренных оперативных служб по оказанию первой и медицинской помощи пострадавшим при дорожно-транспортных происшествиях»",2000,2000,null,null,null,null,null,null,null,null,{"$f":"I14-L14","v":0},null,{"$f":"D14-I14","v":2000}]
[]
[]
[]
[null,"Руководитель    "]
[null,null,"(Должность)",null,null,null,null,null,"Подпись",null,null,null,null,"(Ф.И.О.)"]
[]
[null,"Исполнитель     "]
[null,null,"(Должность)",null,null,null,null,null,"Подпись",null,null,null,null,"(Ф.И.О.)"]
[]
[null,null,null,null,null,null,null,null,null,null,null,null,null,"(адрес электронной почты)"]

{"sheet":"Подписанты","index":1,"n_rows":8,"n_cols":14,"rows_kept":8,"cut":false,"hidden":true,"merged":[[5,13,5,15],[7,13,7,15],[0,2,0,6],[1,2,1,6],[1,8,1,10],[1,13,1,15],[2,2,2,6],[3,2,3,6],[3,8,3,10],[3,13,3,15]]}
[null,"Руководитель    "]
[null,null,"(Должность)",null,null,null,null,null,"Подпись",null,null,null,null,"(Ф.И.О.)"]
[null,"Исполнитель     "]
[null,null,"(Должность)",null,null,null,null,null,"Подпись",null,null,null,null,"(Ф.И.О.)"]
[]
[null,null,null,null,null,null,null,null,null,null,null,null,null,"(адрес электронной почты)"]
[]
[null,null,null,null,null,null,null,null,null,null,null,null,null,"(контактный телефон)"]